[Event "Live Chess"]
[Site "Chess.com"]
[Date "2020.09.22"]
[Round "6"]
[White "GiorgosTsolias"]
[Black "gmbchess"]
[Result "0-1"]
[ECO "C01"]
[WhiteElo "1679"]
[BlackElo "1494"]
[TimeControl "2100+2"]
[EndTime "21:05:50 PDT"]
[Termination "gmbchess won by resignation"]

1. e4 {[%clk 0:34:48.6]} 1... e6 {[%clk 0:34:58]} 2. d4 {[%clk 0:34:44.8]} 2...
d5 {[%clk 0:34:59.2]} 3. exd5 {[%clk 0:34:45.5]} 3... exd5 {[%clk 0:35:01.1]} 4.
Bd3 {[%clk 0:34:46.1]} 4... Bd6 {[%clk 0:34:59.8]} 5. Ne2 {[%clk 0:34:43.1]}
5... Nf6 {[%clk 0:34:56.6]} 6. Bg5 {[%clk 0:31:17.4]} 6... Bg4 {[%clk
0:34:28.8]} 7. f3 {[%clk 0:31:16.2]} 7... Bh5 {[%clk 0:34:28.8]} 8. O-O {[%clk
0:31:10.4]} 8... Nbd7 {[%clk 0:34:12.1]} 9. c3 {[%clk 0:31:01.5]} 9... Bg6
{[%clk 0:33:56]} 10. Nf4 {[%clk 0:30:16.8]} 10... Bxd3 {[%clk 0:32:45.6]} 11.
Qxd3 {[%clk 0:30:03.6]} 11... O-O {[%clk 0:32:40]} 12. Nxd5 {[%clk 0:29:30.2]}
12... h6 {[%clk 0:31:01.3]} 13. Nxf6+ {[%clk 0:25:37.2]} 13... Nxf6 {[%clk
0:31:01.8]} 14. Bh4 {[%clk 0:25:33.8]} 14... Be7 {[%clk 0:30:36.5]} 15. Re1
{[%clk 0:25:00.8]} 15... Re8 {[%clk 0:30:23.1]} 16. Nd2 {[%clk 0:23:58.9]} 16...
c5 {[%clk 0:30:21.9]} 17. Bxf6 {[%clk 0:21:42.8]} 17... Bxf6 {[%clk 0:30:21.3]}
18. Rxe8+ {[%clk 0:21:40.8]} 18... Qxe8 {[%clk 0:30:23.2]} 19. dxc5 {[%clk
0:21:34.5]} 19... Rd8 {[%clk 0:30:23.8]} 20. Qe4 {[%clk 0:20:16.5]} 20... Qb5
{[%clk 0:30:22.8]} 21. Nc4 {[%clk 0:18:13.5]} 21... Qxc5+ {[%clk 0:30:00.2]} 22.
Kf1 {[%clk 0:15:43.7]} 22... b5 {[%clk 0:29:52.3]} 23. Ne3 {[%clk 0:13:36.4]}
23... Rd2 {[%clk 0:27:03.7]} 24. Rb1 {[%clk 0:12:13.3]} 24... g6 {[%clk
0:21:35.2]} 25. Ke1 {[%clk 0:10:11.7]} 25... Rd6 {[%clk 0:19:36.3]} 26. Rd1
{[%clk 0:09:18.5]} 26... Re6 {[%clk 0:19:09.5]} 27. Rd5 {[%clk 0:04:51.7]} 27...
Qxe3+ {[%clk 0:18:10.8]} 28. Qxe3 {[%clk 0:04:43]} 28... Rxe3+ {[%clk
0:18:06.2]} 29. Kf2 {[%clk 0:04:38.8]} 29... Re5 {[%clk 0:18:02.9]} 30. Rd6
{[%clk 0:04:13.4]} 30... Kg7 {[%clk 0:17:47.7]} 31. Ra6 {[%clk 0:03:58.1]} 31...
Re7 {[%clk 0:17:29.8]} 32. Ra5 {[%clk 0:03:51.6]} 32... Rb7 {[%clk 0:17:22.3]}
33. Ke3 {[%clk 0:03:35]} 33... Bd8 {[%clk 0:16:28.1]} 34. Ra6 {[%clk 0:03:08.4]}
34... Rd7 {[%clk 0:15:50.4]} 35. b3 {[%clk 0:03:00.4]} 35... Bg5+ {[%clk
0:15:19]} 36. f4 {[%clk 0:02:41]} 36... Bd8 {[%clk 0:15:11]} 37. c4 {[%clk
0:02:33.5]} 37... bxc4 {[%clk 0:14:50.4]} 38. bxc4 {[%clk 0:02:33.7]} 38... Bb6+
{[%clk 0:14:31.4]} 39. Ke2 {[%clk 0:02:15.8]} 39... Rd4 {[%clk 0:14:22.6]} 40.
Ra4 {[%clk 0:02:15.3]} 40... Rxf4 {[%clk 0:14:19]} 41. Kd3 {[%clk 0:02:15.1]}
41... Rf2 {[%clk 0:13:56.9]} 42. Ke4 {[%clk 0:02:07.6]} 42... Rxg2 {[%clk
0:13:54.4]} 43. Kd5 {[%clk 0:01:54.1]} 43... Rxh2 {[%clk 0:13:50.7]} 44. Kc6
{[%clk 0:01:45.9]} 44... Rh5 {[%clk 0:13:09.5]} 45. Rb4 {[%clk 0:01:29.4]} 45...
Ra5 {[%clk 0:12:42.9]} 46. a4 {[%clk 0:01:26.7]} 46... h5 {[%clk 0:12:24.1]} 47.
Rxb6 {[%clk 0:00:40.8]} 47... axb6 {[%clk 0:11:53.4]} 48. Kxb6 {[%clk
0:00:40.6]} 48... Rxa4 {[%clk 0:11:54.2]} 49. c5 {[%clk 0:00:41.8]} 49... h4
{[%clk 0:11:43]} 50. c6 {[%clk 0:00:41.6]} 50... Rc4 {[%clk 0:11:34]} 51. c7
{[%clk 0:00:39.6]} 51... h3 {[%clk 0:11:29.1]} 52. Kb7 {[%clk 0:00:37]} 52...
Rxc7+ {[%clk 0:11:26.4]} 0-1

[Event "Live Chess"]
[Site "Chess.com"]
[Date "2020.09.22"]
[Round "6"]
[White "jij2018"]
[Black "KyronGriffith"]
[Result "0-1"]
[ECO "B10"]
[WhiteElo "2242"]
[BlackElo "2470"]
[TimeControl "2100+2"]
[EndTime "21:00:33 PDT"]
[Termination "KyronGriffith won by resignation"]

1. e4 {[%clk 0:35:01.3]} 1... c6 {[%clk 0:34:43.5]} 2. Nf3 {[%clk 0:34:37.1]}
2... d5 {[%clk 0:34:43.7]} 3. Nc3 {[%clk 0:34:31.2]} 3... a6 {[%clk 0:34:43.8]}
4. d4 {[%clk 0:34:28.4]} 4... Bg4 {[%clk 0:34:43.9]} 5. h3 {[%clk 0:34:28]} 5...
Bxf3 {[%clk 0:34:43.1]} 6. Qxf3 {[%clk 0:34:28.1]} 6... e6 {[%clk 0:34:43.4]} 7.
exd5 {[%clk 0:33:56.6]} 7... cxd5 {[%clk 0:34:33.7]} 8. Bd3 {[%clk 0:33:56.5]}
8... Nc6 {[%clk 0:34:27]} 9. Ne2 {[%clk 0:33:18.4]} 9... Nb4 {[%clk 0:34:00]}
10. c3 {[%clk 0:32:26.9]} 10... Nxd3+ {[%clk 0:34:00.2]} 11. Qxd3 {[%clk
0:32:26.3]} 11... Nf6 {[%clk 0:33:58.5]} 12. O-O {[%clk 0:32:19.7]} 12... Be7
{[%clk 0:33:13.1]} 13. Bf4 {[%clk 0:31:50.3]} 13... O-O {[%clk 0:33:11.4]} 14.
Ng3 {[%clk 0:29:33.5]} 14... Bd6 {[%clk 0:32:43.5]} 15. Be5 {[%clk 0:28:39.2]}
15... Bxe5 {[%clk 0:32:13.5]} 16. dxe5 {[%clk 0:28:37.7]} 16... Nd7 {[%clk
0:32:15]} 17. f4 {[%clk 0:27:44.3]} 17... Rc8 {[%clk 0:31:07.4]} 18. Rf2 {[%clk
0:24:12.4]} 18... g6 {[%clk 0:30:52.6]} 19. Qe3 {[%clk 0:23:10.4]} 19... Rc4
{[%clk 0:29:44.6]} 20. Rd1 {[%clk 0:22:00.8]} 20... Qb6 {[%clk 0:26:24]} 21.
Qxb6 {[%clk 0:20:36.8]} 21... Nxb6 {[%clk 0:26:25.9]} 22. Ne2 {[%clk 0:19:34.7]}
22... Nd7 {[%clk 0:23:23]} 23. Rf3 {[%clk 0:16:56]} 23... b5 {[%clk 0:22:32.7]}
24. Rd4 {[%clk 0:15:30.7]} 24... Rb8 {[%clk 0:21:51.2]} 25. Rf1 {[%clk
0:14:04.7]} 25... a5 {[%clk 0:19:02.8]} 26. Rc1 {[%clk 0:11:41.3]} 26... Rbc8
{[%clk 0:18:30.5]} 27. b3 {[%clk 0:09:19.8]} 27... R4c7 {[%clk 0:17:47.8]} 28.
a4 {[%clk 0:08:04.2]} 28... b4 {[%clk 0:17:09.9]} 29. c4 {[%clk 0:06:54.3]}
29... Nb6 {[%clk 0:17:00]} 30. c5 {[%clk 0:06:54.1]} 30... Rxc5 {[%clk
0:16:57.9]} 31. Rxc5 {[%clk 0:06:56]} 31... Rxc5 {[%clk 0:16:58.6]} 32. Kf2
{[%clk 0:06:27]} 32... Rc2 {[%clk 0:16:36.1]} 33. Rd3 {[%clk 0:05:37.7]} 33...
Nd7 {[%clk 0:16:28]} 34. Kf3 {[%clk 0:04:29.5]} 34... Nc5 {[%clk 0:16:16.3]} 35.
Re3 {[%clk 0:04:09.7]} 35... Rd2 {[%clk 0:16:03.5]} 36. Nc1 {[%clk 0:03:42.5]}
36... Rd1 {[%clk 0:15:39.4]} 37. Na2 {[%clk 0:03:08.6]} 37... Ra1 {[%clk
0:15:37.3]} 38. Re2 {[%clk 0:02:53.7]} 38... Nxb3 {[%clk 0:15:38.5]} 39. Rb2
{[%clk 0:02:54]} 39... Nc5 {[%clk 0:15:27.2]} 40. Nxb4 {[%clk 0:01:51.8]} 40...
axb4 {[%clk 0:15:20.8]} 41. Rxb4 {[%clk 0:01:53.7]} 41... Rxa4 {[%clk 0:15:18]}
42. Rb5 {[%clk 0:01:37.5]} 42... Ra3+ {[%clk 0:15:02.9]} 43. Kg4 {[%clk
0:01:30.2]} 43... Ne4 {[%clk 0:14:54.8]} 44. Rb8+ {[%clk 0:01:26.4]} 44... Kg7
{[%clk 0:14:52.8]} 45. Rb2 {[%clk 0:01:26.3]} 45... h6 {[%clk 0:14:51.8]} 46.
Re2 {[%clk 0:01:13.2]} 46... Rg3+ {[%clk 0:14:10.4]} 47. Kh4 {[%clk 0:01:10.6]}
47... g5+ {[%clk 0:14:11.9]} 48. fxg5 {[%clk 0:01:10.9]} 48... hxg5+ {[%clk
0:14:13.8]} 49. Kh5 {[%clk 0:01:11.8]} 49... Rxh3+ {[%clk 0:14:12.7]} 50. gxh3
{[%clk 0:01:11.2]} 50... Ng3+ {[%clk 0:14:13.8]} 51. Kxg5 {[%clk 0:01:12.9]}
51... Nxe2 {[%clk 0:14:15.7]} 52. Kg4 {[%clk 0:01:12.1]} 52... Nd4 {[%clk
0:14:14.3]} 0-1

[Event "Live Chess"]
[Site "Chess.com"]
[Date "2020.09.22"]
[Round "6"]
[White "jshah1331"]
[Black "MatnMatt20"]
[Result "0-1"]
[ECO "A40"]
[WhiteElo "1832"]
[BlackElo "1718"]
[TimeControl "2100+2"]
[EndTime "20:43:07 PDT"]
[Termination "MatnMatt20 won by resignation"]

1. d4 {[%clk 0:35:01.9]} 1... g6 {[%clk 0:34:58.1]} 2. Nf3 {[%clk 0:35:03]} 2...
Bg7 {[%clk 0:34:58.4]} 3. c4 {[%clk 0:35:04.6]} 3... e6 {[%clk 0:34:54.4]} 4.
Nc3 {[%clk 0:35:05.5]} 4... Ne7 {[%clk 0:34:55]} 5. Bf4 {[%clk 0:35:06.4]} 5...
d6 {[%clk 0:34:56]} 6. e3 {[%clk 0:35:07.6]} 6... Nd7 {[%clk 0:34:56.3]} 7. Be2
{[%clk 0:35:08.9]} 7... b6 {[%clk 0:34:56.5]} 8. O-O {[%clk 0:35:10.4]} 8... Bb7
{[%clk 0:34:57.5]} 9. Rc1 {[%clk 0:35:10.9]} 9... O-O {[%clk 0:34:57.9]} 10. Re1
{[%clk 0:35:12.2]} 10... a6 {[%clk 0:34:48]} 11. a3 {[%clk 0:35:07.7]} 11... Rb8
{[%clk 0:34:45.9]} 12. b4 {[%clk 0:35:08.4]} 12... e5 {[%clk 0:34:44.6]} 13.
dxe5 {[%clk 0:35:08.9]} 13... dxe5 {[%clk 0:34:44.9]} 14. Bg3 {[%clk 0:35:10.2]}
14... Nf5 {[%clk 0:34:40.4]} 15. Nd5 {[%clk 0:34:59.7]} 15... Nxg3 {[%clk
0:34:38.2]} 16. hxg3 {[%clk 0:35:01.6]} 16... Nf6 {[%clk 0:34:34.2]} 17. Nxf6+
{[%clk 0:35:01.8]} 17... Qxf6 {[%clk 0:34:30.1]} 18. Qc2 {[%clk 0:35:00.9]}
18... Rfd8 {[%clk 0:34:11.8]} 19. Red1 {[%clk 0:35:00.4]} 19... Bc8 {[%clk
0:33:08.5]} 20. Rxd8+ {[%clk 0:34:47]} 20... Qxd8 {[%clk 0:33:07.5]} 21. Rd1
{[%clk 0:34:47.6]} 21... Qe7 {[%clk 0:32:59.7]} 22. Rd5 {[%clk 0:33:32.5]} 22...
Be6 {[%clk 0:32:41]} 23. Rd1 {[%clk 0:32:58.5]} 23... Rd8 {[%clk 0:32:41.8]} 24.
Rxd8+ {[%clk 0:32:54]} 24... Qxd8 {[%clk 0:32:42.1]} 25. c5 {[%clk 0:32:55.2]}
25... a5 {[%clk 0:30:33.3]} 26. cxb6 {[%clk 0:32:41.9]} 26... cxb6 {[%clk
0:30:32.7]} 27. bxa5 {[%clk 0:32:42.9]} 27... bxa5 {[%clk 0:30:33.7]} 28. a4
{[%clk 0:32:44.2]} 28... Qb8 {[%clk 0:30:09]} 29. Bb5 {[%clk 0:32:30.5]} 29...
Bf5 {[%clk 0:29:22.6]} 30. e4 {[%clk 0:31:51.5]} 30... Be6 {[%clk 0:29:10]} 31.
Qc3 {[%clk 0:31:40.7]} 31... Qd8 {[%clk 0:24:23.9]} 32. Nxe5 {[%clk 0:30:43.1]}
32... Qd1+ {[%clk 0:24:18.3]} 33. Bf1 {[%clk 0:30:11.3]} 33... h6 {[%clk
0:22:58.5]} 34. Qd3 {[%clk 0:26:19.6]} 34... Qxa4 {[%clk 0:21:45.1]} 35. Nf3
{[%clk 0:25:39]} 35... Qa1 {[%clk 0:18:41.2]} 36. Nd2 {[%clk 0:24:58.9]} 36...
a4 {[%clk 0:18:11.1]} 37. Kh2 {[%clk 0:20:32.4]} 37... a3 {[%clk 0:17:20.7]} 38.
Qd8+ {[%clk 0:18:41.6]} 38... Kh7 {[%clk 0:16:43.9]} 39. f4 {[%clk 0:17:31.2]}
39... a2 {[%clk 0:15:45.4]} 40. f5 {[%clk 0:17:26.8]} 40... Qd4 {[%clk
0:15:40.3]} 0-1

[Event "Live Chess"]
[Site "Chess.com"]
[Date "2020.09.22"]
[Round "6"]
[White "KenFee"]
[Black "vish1080"]
[Result "0-1"]
[ECO "D00"]
[WhiteElo "1884"]
[BlackElo "1664"]
[TimeControl "2100+2"]
[EndTime "20:35:41 PDT"]
[Termination "vish1080 won by resignation"]

1. d4 {[%clk 0:34:55.6]} 1... d5 {[%clk 0:34:56.2]} 2. Bf4 {[%clk 0:34:54.9]}
2... Nf6 {[%clk 0:34:55.6]} 3. e3 {[%clk 0:34:52]} 3... c5 {[%clk 0:34:47.5]} 4.
c3 {[%clk 0:34:49.1]} 4... Nc6 {[%clk 0:34:45.2]} 5. Nd2 {[%clk 0:34:41.2]} 5...
e6 {[%clk 0:34:38.6]} 6. Ngf3 {[%clk 0:34:32.3]} 6... cxd4 {[%clk 0:34:26.6]} 7.
exd4 {[%clk 0:34:28.9]} 7... Nh5 {[%clk 0:34:13.1]} 8. Bg5 {[%clk 0:32:57.9]}
8... f6 {[%clk 0:33:49.8]} 9. Bh4 {[%clk 0:32:16.8]} 9... Be7 {[%clk 0:33:22.8]}
10. Bd3 {[%clk 0:31:54.3]} 10... Nf4 {[%clk 0:33:09.3]} 11. Bf1 {[%clk
0:31:16.1]} 11... Ng6 {[%clk 0:32:40]} 12. Bg3 {[%clk 0:31:13.6]} 12... e5
{[%clk 0:32:23]} 13. dxe5 {[%clk 0:30:53.2]} 13... fxe5 {[%clk 0:32:21.6]} 14.
Bb5 {[%clk 0:30:37]} 14... e4 {[%clk 0:31:53.5]} 15. Nd4 {[%clk 0:30:26.8]}
15... Bd7 {[%clk 0:31:52.6]} 16. Bxc6 {[%clk 0:29:31.3]} 16... bxc6 {[%clk
0:31:51.7]} 17. O-O {[%clk 0:29:29.6]} 17... O-O {[%clk 0:31:52.2]} 18. b4
{[%clk 0:28:39.4]} 18... Bf6 {[%clk 0:31:16.2]} 19. N2b3 {[%clk 0:28:31.2]}
19... Be5 {[%clk 0:30:54.2]} 20. Nc5 {[%clk 0:27:51.7]} 20... Qe7 {[%clk
0:30:15.8]} 21. Nxd7 {[%clk 0:27:26.4]} 21... Qxd7 {[%clk 0:29:56.9]} 22. Qa4
{[%clk 0:25:44.4]} 22... Bxd4 {[%clk 0:29:24.5]} 23. cxd4 {[%clk 0:25:42.8]}
23... Nf4 {[%clk 0:28:46.6]} 24. Bxf4 {[%clk 0:25:32.3]} 24... Rxf4 {[%clk
0:28:45.9]} 25. Rac1 {[%clk 0:25:33]} 25... Rf6 {[%clk 0:27:40.1]} 26. Rc5
{[%clk 0:25:20.5]} 26... a6 {[%clk 0:27:26.9]} 27. Qc2 {[%clk 0:23:52.7]} 27...
Raf8 {[%clk 0:27:09.5]} 28. Qe2 {[%clk 0:23:34.7]} 28... Qb7 {[%clk 0:27:02.8]}
29. a3 {[%clk 0:23:26.4]} 29... Qe7 {[%clk 0:26:26.8]} 30. Rc3 {[%clk 0:22:25]}
30... Qa7 {[%clk 0:26:04.9]} 31. Qd2 {[%clk 0:22:15.6]} 31... Qd7 {[%clk
0:25:51.6]} 32. Re3 {[%clk 0:22:10.7]} 32... Qg4 {[%clk 0:25:46.7]} 33. Qe2
{[%clk 0:21:57.6]} 33... Rf3 {[%clk 0:24:03.1]} 34. Qxa6 {[%clk 0:20:16.4]}
34... R8f6 {[%clk 0:23:02.6]} 35. Qa8+ {[%clk 0:19:23.2]} 35... Rf8 {[%clk
0:22:47.3]} 36. Qxc6 {[%clk 0:19:05]} 36... Rxf2 {[%clk 0:22:20.3]} 37. Qxd5+
{[%clk 0:18:33.6]} 37... Kh8 {[%clk 0:22:19.3]} 38. Qg8+ {[%clk 0:17:50.8]}
38... Kxg8 {[%clk 0:22:18.2]} 39. Rxf2 {[%clk 0:17:50.2]} 39... Qd1+ {[%clk
0:22:18.9]} 0-1

[Event "Live Chess"]
[Site "Chess.com"]
[Date "2020.09.22"]
[Round "6"]
[White "Mangonel"]
[Black "Joseph_Truelsons_fan"]
[Result "0-1"]
[ECO "D30"]
[WhiteElo "1940"]
[BlackElo "1761"]
[TimeControl "2100+2"]
[EndTime "20:43:22 PDT"]
[Termination "Joseph_Truelsons_fan won by resignation"]

1. d4 {[%clk 0:34:47.4]} 1... d5 {[%clk 0:34:39.7]} 2. c4 {[%clk 0:34:30.4]}
2... e6 {[%clk 0:34:38.6]} 3. Nf3 {[%clk 0:34:30.1]} 3... Nf6 {[%clk 0:34:35.7]}
4. g3 {[%clk 0:34:28.9]} 4... dxc4 {[%clk 0:34:33.8]} 5. Bg2 {[%clk 0:34:29]}
5... Bb4+ {[%clk 0:34:33.8]} 6. Bd2 {[%clk 0:34:23.5]} 6... Be7 {[%clk
0:34:15.3]} 7. Na3 {[%clk 0:33:30.5]} 7... Nc6 {[%clk 0:34:05.7]} 8. Nxc4 {[%clk
0:32:45.2]} 8... Nxd4 {[%clk 0:33:51.9]} 9. Nxd4 {[%clk 0:31:06.9]} 9... Qxd4
{[%clk 0:33:50]} 10. Qb3 {[%clk 0:31:01.5]} 10... Nd5 {[%clk 0:32:26]} 11. Rd1
{[%clk 0:30:03.3]} 11... Qc5 {[%clk 0:30:19.9]} 12. e4 {[%clk 0:29:42.8]} 12...
Nb6 {[%clk 0:30:02.1]} 13. Ne3 {[%clk 0:26:15.5]} 13... O-O {[%clk 0:29:30.6]}
14. Rc1 {[%clk 0:24:44.5]} 14... Qd6 {[%clk 0:29:11.8]} 15. a3 {[%clk
0:23:51.1]} 15... c5 {[%clk 0:28:38.7]} 16. Bc3 {[%clk 0:23:09.2]} 16... Qc7
{[%clk 0:27:59.6]} 17. O-O {[%clk 0:22:32.9]} 17... Bd7 {[%clk 0:27:37.3]} 18.
Qc2 {[%clk 0:21:00.1]} 18... Rfd8 {[%clk 0:26:51.8]} 19. Ng4 {[%clk 0:20:33.5]}
19... Ba4 {[%clk 0:25:46.8]} 20. Be5 {[%clk 0:19:57.9]} 20... Qxe5 {[%clk
0:24:25.4]} 21. Nxe5 {[%clk 0:19:20.6]} 21... Bxc2 {[%clk 0:23:24.7]} 22. Rxc2
{[%clk 0:19:22.5]} 22... Bf6 {[%clk 0:22:54.5]} 23. Rxc5 {[%clk 0:18:43.6]}
23... Na4 {[%clk 0:22:52.2]} 24. Rb5 {[%clk 0:18:01.7]} 24... a6 {[%clk
0:22:05.6]} 25. Rb4 {[%clk 0:17:37.6]} 25... Bxe5 {[%clk 0:21:53.5]} 26. Rxa4
{[%clk 0:17:32.4]} 26... Bxb2 {[%clk 0:21:51.3]} 27. Rb1 {[%clk 0:17:24.5]}
27... b5 {[%clk 0:21:30.8]} 28. e5 {[%clk 0:15:26.8]} 28... Ra7 {[%clk
0:21:18.8]} 29. Rxb2 {[%clk 0:13:50.9]} 29... bxa4 {[%clk 0:21:18.7]} 30. Rb6
{[%clk 0:13:42.1]} 30... g6 {[%clk 0:21:14.7]} 31. Bf1 {[%clk 0:13:41]} 31...
Rd5 {[%clk 0:20:58.8]} 32. f4 {[%clk 0:13:36.3]} 32... Rd1 {[%clk 0:20:47.9]}
33. Kg2 {[%clk 0:13:35.8]} 33... Ra1 {[%clk 0:20:46.9]} 34. Bxa6 {[%clk
0:13:22.5]} 34... Rxa3 {[%clk 0:20:44.7]} 35. Bc4 {[%clk 0:12:53.4]} 35... Rc3
{[%clk 0:20:28.7]} 36. Rb8+ {[%clk 0:12:47.2]} 36... Kg7 {[%clk 0:20:28.2]} 37.
Rc8 {[%clk 0:12:49.1]} 37... a3 {[%clk 0:20:23.1]} 38. f5 {[%clk 0:12:29.8]}
38... gxf5 {[%clk 0:20:13.3]} 0-1

[Event "Live Chess"]
[Site "Chess.com"]
[Date "2020.09.22"]
[Round "6"]
[White "mathandchess2020"]
[Black "PlayerCreate1"]
[Result "1/2-1/2"]
[ECO "A45"]
[WhiteElo "2227"]
[BlackElo "1812"]
[TimeControl "2100+2"]
[EndTime "20:48:46 PDT"]
[Termination "Game drawn by repetition"]

1. d4 {[%clk 0:34:59.7]} 1... Nf6 {[%clk 0:34:39.7]} 2. Bf4 {[%clk 0:34:55.9]}
2... g6 {[%clk 0:34:40.5]} 3. Nf3 {[%clk 0:34:54.7]} 3... Bg7 {[%clk 0:34:41.6]}
4. e3 {[%clk 0:34:52.5]} 4... O-O {[%clk 0:34:42.4]} 5. Be2 {[%clk 0:34:45.2]}
5... c5 {[%clk 0:34:42.5]} 6. O-O {[%clk 0:34:25.1]} 6... cxd4 {[%clk
0:34:42.6]} 7. exd4 {[%clk 0:34:24.3]} 7... d6 {[%clk 0:34:35.4]} 8. c3 {[%clk
0:34:00.9]} 8... Nc6 {[%clk 0:34:28]} 9. h3 {[%clk 0:33:46.6]} 9... Qb6 {[%clk
0:34:04.4]} 10. Qb3 {[%clk 0:33:40.8]} 10... Qa5 {[%clk 0:33:59.7]} 11. Nbd2
{[%clk 0:33:34.9]} 11... Be6 {[%clk 0:33:58.9]} 12. Qxb7 {[%clk 0:32:53.7]}
12... Rfc8 {[%clk 0:33:58.3]} 13. Qa6 {[%clk 0:32:38.5]} 13... Qc7 {[%clk
0:33:53.7]} 14. Qd3 {[%clk 0:30:10]} 14... Bf5 {[%clk 0:33:51.8]} 15. Qc4 {[%clk
0:29:32.2]} 15... Be6 {[%clk 0:33:44.6]} 16. Qa4 {[%clk 0:29:26]} 16... Rab8
{[%clk 0:33:44.1]} 17. b3 {[%clk 0:29:10.7]} 17... Bd7 {[%clk 0:33:40.2]} 18.
Qa3 {[%clk 0:29:04.3]} 18... Nd5 {[%clk 0:33:39.9]} 19. Bg5 {[%clk 0:28:20]}
19... Nxc3 {[%clk 0:33:40.2]} 20. Ba6 {[%clk 0:28:19.1]} 20... Re8 {[%clk
0:33:35.7]} 21. Rac1 {[%clk 0:27:56.4]} 21... Nd5 {[%clk 0:33:35.9]} 22. Bc4
{[%clk 0:27:33.8]} 22... e6 {[%clk 0:33:26.6]} 23. Bxd5 {[%clk 0:27:25]} 23...
exd5 {[%clk 0:33:27]} 24. Rc2 {[%clk 0:25:19.8]} 24... Rb6 {[%clk 0:33:23]} 25.
Rfc1 {[%clk 0:25:10]} 25... Qb8 {[%clk 0:33:23.7]} 26. Be3 {[%clk 0:23:14.1]}
26... Bf8 {[%clk 0:30:57.3]} 27. Bf4 {[%clk 0:19:54.2]} 27... Nb4 {[%clk
0:28:07.8]} 28. Rc3 {[%clk 0:18:19.2]} 28... Ra6 {[%clk 0:27:33.4]} 29. Qb2
{[%clk 0:17:48]} 29... Nxa2 {[%clk 0:27:33.6]} 30. Nb1 {[%clk 0:16:36.4]} 30...
Nxc1 {[%clk 0:27:20]} 31. Rxc1 {[%clk 0:16:29.5]} 31... Rb6 {[%clk 0:27:16.8]}
32. Nbd2 {[%clk 0:16:24.9]} 32... a5 {[%clk 0:27:06.5]} 33. Qa3 {[%clk
0:16:20.4]} 33... a4 {[%clk 0:27:01.6]} 34. bxa4 {[%clk 0:16:19.5]} 34... Rb4
{[%clk 0:26:54.9]} 35. a5 {[%clk 0:16:09]} 35... Ra4 {[%clk 0:26:55.4]} 36. Qd3
{[%clk 0:15:57.4]} 36... Rxa5 {[%clk 0:26:50.6]} 37. g4 {[%clk 0:15:56.4]} 37...
Bb5 {[%clk 0:26:45.3]} 38. Qc3 {[%clk 0:15:45.5]} 38... Ra7 {[%clk 0:26:32.9]}
39. Qb3 {[%clk 0:15:12.4]} 39... Qb7 {[%clk 0:25:58.5]} 40. Rb1 {[%clk
0:14:40.6]} 40... Rb8 {[%clk 0:25:53.1]} 41. h4 {[%clk 0:14:23.2]} 41... Bd7
{[%clk 0:25:48.5]} 42. Qe3 {[%clk 0:13:29.5]} 42... Qc7 {[%clk 0:25:34.1]} 43.
Rxb8 {[%clk 0:13:07.6]} 43... Qxb8 {[%clk 0:25:32.5]} 44. g5 {[%clk 0:12:52.7]}
44... Bf5 {[%clk 0:25:27.8]} 45. h5 {[%clk 0:12:48.4]} 45... Re7 {[%clk
0:25:26.3]} 46. Qa3 {[%clk 0:12:41.8]} 46... Re6 {[%clk 0:25:18.2]} 47. Nf1
{[%clk 0:09:56.4]} 47... Bg4 {[%clk 0:25:12.7]} 48. hxg6 {[%clk 0:08:44.3]}
48... hxg6 {[%clk 0:25:09]} 49. N3h2 {[%clk 0:08:29.7]} 49... Bf5 {[%clk
0:25:01.9]} 50. Ng3 {[%clk 0:08:21.8]} 50... Qb1+ {[%clk 0:25:00]} 51. Kg2
{[%clk 0:08:12.3]} 51... Be4+ {[%clk 0:24:58.6]} 52. Kh3 {[%clk 0:08:05.8]}
52... Qg1 {[%clk 0:24:29.3]} 53. f3 {[%clk 0:07:53.1]} 53... Bf5+ {[%clk
0:24:14.9]} 54. Nxf5 {[%clk 0:07:34.9]} 54... gxf5 {[%clk 0:24:14.9]} 55. Qd3
{[%clk 0:06:51.5]} 55... Rg6 {[%clk 0:24:02.8]} 56. Qxf5 {[%clk 0:06:42.8]}
56... Rg7 {[%clk 0:24:02.1]} 57. Ng4 {[%clk 0:06:07.3]} 57... Qf1+ {[%clk
0:23:45.5]} 58. Kg3 {[%clk 0:05:36.4]} 58... Qg1+ {[%clk 0:23:43.4]} 59. Kh3
{[%clk 0:05:34.2]} 59... Qh1+ {[%clk 0:23:38]} 60. Kg3 {[%clk 0:05:30.3]} 60...
Qg1+ {[%clk 0:23:18.5]} 61. Kh3 {[%clk 0:05:27.5]} 1/2-1/2

[Event "Live Chess"]
[Site "Chess.com"]
[Date "2020.09.22"]
[Round "6"]
[White "mwncklmann"]
[Black "chessboi2010"]
[Result "1-0"]
[ECO "A50"]
[WhiteElo "1866"]
[BlackElo "1628"]
[TimeControl "2100+2"]
[EndTime "20:54:05 PDT"]
[Termination "mwncklmann won by resignation"]

1. c4 {[%clk 0:34:53.2]} 1... Nf6 {[%clk 0:34:53.6]} 2. d4 {[%clk 0:34:52.2]}
2... g6 {[%clk 0:34:38.3]} 3. Nc3 {[%clk 0:34:51.7]} 3... Bg7 {[%clk 0:34:34.2]}
4. e4 {[%clk 0:34:51.8]} 4... d6 {[%clk 0:34:21.9]} 5. Nf3 {[%clk 0:34:50.6]}
5... O-O {[%clk 0:34:14.9]} 6. Be2 {[%clk 0:34:51]} 6... e5 {[%clk 0:33:55.4]}
7. O-O {[%clk 0:34:51.1]} 7... exd4 {[%clk 0:33:23.2]} 8. Nxd4 {[%clk
0:34:39.5]} 8... Re8 {[%clk 0:33:15.4]} 9. f3 {[%clk 0:34:31.6]} 9... a6 {[%clk
0:32:00]} 10. Be3 {[%clk 0:34:00.1]} 10... Nbd7 {[%clk 0:31:29.7]} 11. Qc2
{[%clk 0:31:54.7]} 11... c5 {[%clk 0:30:21.3]} 12. Nb3 {[%clk 0:31:26.8]} 12...
b6 {[%clk 0:30:07]} 13. Rfd1 {[%clk 0:30:24.2]} 13... Qc7 {[%clk 0:29:15.7]} 14.
Qd2 {[%clk 0:28:48.7]} 14... Re6 {[%clk 0:28:04.4]} 15. a4 {[%clk 0:27:37.9]}
15... Bb7 {[%clk 0:27:44.6]} 16. a5 {[%clk 0:27:31.8]} 16... Rd8 {[%clk
0:27:17.1]} 17. axb6 {[%clk 0:25:55.2]} 17... Nxb6 {[%clk 0:25:50.8]} 18. Nxc5
{[%clk 0:24:54.6]} 18... Re5 {[%clk 0:24:21.9]} 19. Nxb7 {[%clk 0:23:08.9]}
19... Qxb7 {[%clk 0:23:54.4]} 20. c5 {[%clk 0:23:09]} 20... Nc8 {[%clk
0:22:53.8]} 21. Bxa6 {[%clk 0:22:54.5]} 21... Qd7 {[%clk 0:21:58.2]} 22. cxd6
{[%clk 0:20:41.6]} 22... Nxd6 {[%clk 0:20:04.4]} 23. Bf4 {[%clk 0:19:53.1]}
23... Qe6 {[%clk 0:16:45.5]} 24. Bxe5 {[%clk 0:19:31.8]} 24... Qxe5 {[%clk
0:16:29.5]} 25. Nb5 {[%clk 0:17:13.1]} 25... Qc5+ {[%clk 0:15:58.6]} 26. Kh1
{[%clk 0:17:12.9]} 26... Bf8 {[%clk 0:15:10.1]} 27. Qc3 {[%clk 0:14:58.7]} 27...
Ndxe4 {[%clk 0:10:20.1]} 28. fxe4 {[%clk 0:13:12.9]} 28... Nxe4 {[%clk
0:10:10.4]} 29. Qxc5 {[%clk 0:13:13.3]} 29... Rxd1+ {[%clk 0:10:03]} 30. Rxd1
{[%clk 0:13:15.2]} 30... Bxc5 {[%clk 0:10:03.4]} 31. Rd8+ {[%clk 0:13:14.5]}
31... Kg7 {[%clk 0:10:04.2]} 32. g3 {[%clk 0:13:13.1]} 1-0